fUSD/lending_fUSD_20250314
["ID","MTS","AMOUNT","RATE_DAILY","PERIOD"]
[356130831,1741936879652,-500.0,0.00021999,3]
[356130832,1741936879708,-996.86,0.00021999,3]
[356130833,1741936879761,-500.0,0.00021999,3]
[356130834,1741936879815,-500.0,0.00021999,3]
[356130835,1741936879866,-1317.11,0.00021999,3]
[356130836,1741936879921,-500.0,0.00021999,3]
[356130837,1741936879973,-500.0,0.00021999,3]
[356130838,1741936880026,-1005.89,0.00021999,3]
[356130839,1741936880081,-500.0,0.00021999,3]
[356130840,1741936880129,-500.0,0.00021999,3]
[356130841,1741936880178,-500.0,0.00021999,3]
[356130842,1741936880228,-500.0,0.00021999,3]
[356130843,1741936880278,-500.0,0.00021999,3]
[356130844,1741936880331,-547.37,0.00021999,3]
[356130845,1741936880380,-500.0,0.00021999,3]
[356130846,1741936880428,-500.0,0.00021999,3]
[356130847,1741936880475,-151.0,0.00021999,7]
[356130848,1741936880523,-527.11,0.00021999,3]
[356130849,1741936880570,-151.0,0.00021999,7]
[356130850,1741936880618,-500.0,0.00021999,3]
[356130851,1741936880670,-500.0,0.00021999,3]
[356130852,1741936880718,-500.0,0.00021999,3]
[356130853,1741936880766,-500.0,0.00021999,3]
[356130854,1741936880814,-500.0,0.00021999,3]
[356130855,1741936880862,-500.0,0.00021999,3]
[356130856,1741936880909,-669.94,0.00021999,3]
[356130857,1741936880957,-500.0,0.00021999,3]
[356130858,1741936881005,-500.0,0.00021999,3]
[356130859,1741936881053,-500.0,0.00021999,3]
[356130860,1741936881100,-1385.58,0.00021999,3]
[356130861,1741936881147,-500.0,0.00021999,3]
[356130862,1741936881196,-500.0,0.00021999,3]
[356130863,1741936881247,-500.0,0.00021999,3]
[356130864,1741936881293,-500.0,0.00021999,3]
[356130865,1741936881340,-500.0,0.00021999,3]
[356130866,1741936881385,-500.0,0.00021999,3]
[356130867,1741936881433,-500.0,0.00021999,3]
[356130868,1741936881480,-500.0,0.00021999,3]
[356130869,1741936881526,-677.48,0.00021999,3]
[356130870,1741936881574,-500.0,0.00021999,3]
[356130871,1741936881621,-550.15,0.00021999,3]
[356130872,1741936881672,-500.0,0.00021999,3]
[356130873,1741936881730,-500.0,0.00021999,3]
[356130874,1741936881779,-517.91,0.00021999,3]
[356130875,1741936881830,-500.0,0.00021999,3]
[356130876,1741936881877,-797.96,0.00021999,3]
[356130877,1741936881925,-500.0,0.00021999,3]
[356130878,1741936881973,-536.18,0.00021999,3]
[356130879,1741936882021,-500.0,0.00021999,3]
[356130880,1741936882070,-155.73418201,0.00021999,3]
[356130881,1741936882118,-500.0,0.00021999,3]
[356130882,1741936882165,-558.34,0.00021999,3]
[356130883,1741936882212,-517.45,0.00021999,3]
[356130884,1741936882259,-500.0,0.00021999,3]
[356130885,1741936882307,-500.0,0.00021999,3]
[356130886,1741936882354,-537.35,0.00021999,3]
[356130887,1741936882402,-500.0,0.00021999,3]
[356130888,1741936882449,-643.93,0.00021999,3]
[356130889,1741936882496,-500.0,0.00021999,3]
[356130890,1741936882543,-500.0,0.00021999,3]
[356130891,1741936882589,-500.0,0.00021999,3]
[356130892,1741936882637,-1730.15,0.00021999,3]
[356130893,1741936882683,-500.0,0.00021999,3]
[356130894,1741936882730,-500.0,0.00021999,3]
[356130895,1741936882778,-500.0,0.00021999,3]
[356130896,1741936882823,-3556.92,0.00021999,3]
[356130897,1741936882868,-500.0,0.00021999,3]
[356130898,1741936882913,-500.0,0.00021999,3]
[356130899,1741936882959,-500.0,0.00021999,3]
[356130900,1741936883007,-500.0,0.00021999,3]
[356130901,1741936883057,-534.15,0.00021999,3]
[356130902,1741936883109,-783.75,0.00021999,3]
[356130903,1741936883158,-500.0,0.00021999,3]
[356130904,1741936883207,-500.0,0.00021999,3]
[356130905,1741936883255,-849.01,0.00021999,3]
[356130906,1741936883301,-500.0,0.00021999,3]
[356130907,1741936883348,-670.89,0.00021999,3]
[356130908,1741936883392,-500.0,0.00021999,2]
[356130909,1741936883436,-500.0,0.00021999,3]
[356130910,1741936883479,-151.0,0.00021999,7]
[356130911,1741936883524,-500.0,0.00021999,3]
[356130912,1741936883568,-500.0,0.00021999,3]
[356130913,1741936883611,-1924.04,0.00021999,3]
[356130914,1741936883655,-856.19,0.00021999,3]
[356130915,1741936883703,-605.75,0.00021999,3]
[356130916,1741936883751,-220.264121,0.00021999,7]
[356130917,1741936883798,-500.0,0.00021999,3]
[356130918,1741936883848,-629.05968653,0.00021999,3]
[356130919,1741936892759,-322.5435,0.00011476,2]
[356130920,1741936892788,-1000.0,0.00021034,2]
[356130921,1741936892817,-1082.99396724,0.00021506,2]
[356130922,1741936892844,-1120.86847827,0.00021533,2]
[356130923,1741936892872,-418.32655585,0.00021916,2]
[356130924,1741936892900,-500.0,0.00021917,3]
[356130925,1741936892928,-200.0,0.00021917,3]
[356130926,1741936892955,-500.0,0.00021917,3]
[356130927,1741936892982,-511.33627144,0.00021917,3]
[356130928,1741936893010,-501.65780813,0.00021917,3]
[356130929,1741936893038,-500.0,0.00021917,3]
[356130930,1741936893067,-500.0,0.00021917,3]
[356130931,1741936893096,-500.0,0.00021917,3]
[356130932,1741936893124,-500.0,0.00021917,3]
[356130933,1741936893152,-500.0,0.00021917,3]
[356130934,1741936893181,-500.0,0.00021917,3]
[356130935,1741936893210,-502.18898144,0.00021917,3]
[356130936,1741936893238,-500.0,0.00021917,3]
[356130937,1741936893267,-500.0,0.00021917,3]
[356130938,1741936893296,-500.0,0.00021917,3]
[356130939,1741936893325,-500.0,0.00021917,3]
[356130940,1741936893354,-500.0,0.00021917,3]
[356130941,1741936893383,-1270.52,0.00021917,3]
[356130942,1741936893411,-500.0,0.00021917,3]
[356130943,1741936893439,-500.0,0.00021917,3]
[356130944,1741936893466,-500.0,0.00021917,3]
[356130945,1741936893494,-500.0,0.00021917,3]
[356130946,1741936893522,-500.0,0.00021917,3]
[356130947,1741936893550,-500.0,0.00021917,3]
[356130948,1741936893578,-500.0,0.00021917,3]
[356130949,1741936893605,-500.0,0.00021917,3]
[356130950,1741936893633,-500.0,0.00021917,2]
[356130951,1741936893659,-500.0,0.00021917,3]
[356130952,1741936893691,-500.0,0.00021917,3]
[356130953,1741936893721,-500.0,0.00021917,3]
[356130954,1741936893749,-500.0,0.00021917,3]
[356130955,1741936893777,-500.0,0.00021917,3]
[356130956,1741936893804,-500.0,0.00021917,3]
[356130957,1741936893831,-500.0,0.00021917,3]
[356130958,1741936893857,-500.0,0.00021917,3]
[356130959,1741936893884,-500.0,0.00021917,3]
[356130960,1741936893910,-500.0,0.00021917,3]
[356130961,1741936893937,-500.0,0.00021917,3]
[356130962,1741936893964,-500.0,0.00021917,3]
[356130963,1741936893992,-500.0,0.00021917,3]
[356130964,1741936894019,-500.0,0.00021917,3]
[356130965,1741936894046,-500.0,0.00021917,3]
[356130966,1741936894073,-500.11339984,0.00021917,3]
[356130967,1741936894100,-500.0,0.00021917,3]
[356130968,1741936894128,-500.0,0.00021917,3]
[356130969,1741936894157,-500.0,0.00021944,3]
[356130970,1741936894184,-171.20333321,0.00021944,3]
[356130971,1741936894212,-518.65201174,0.00021944,3]
[356130972,1741936894240,-500.0,0.00021944,3]
[356130973,1741936894269,-501.97270787,0.00021944,3]
[356130974,1741936894299,-508.05322764,0.00021944,3]
[356130975,1741936894326,-500.91918257,0.00021944,3]
[356130976,1741936894353,-500.0,0.00021944,3]
[356130977,1741936894381,-504.99311101,0.00021945,3]
[356130978,1741936894409,-626.879335,0.00021945,7]
[356130979,1741936894435,-206.40137586,0.00021945,3]
[356130980,1741936894461,-500.0,0.00021945,3]
[356130981,1741936894488,-1270.52,0.00021945,3]
[356130982,1741936894515,-500.0,0.00021945,2]
[356130983,1741936894542,-500.0,0.00021945,3]
[356130984,1741936894569,-163.97,0.00021945,3]
[356130985,1741936894595,-929.0,0.00021972,2]
[356130986,1741936894623,-500.0,0.00021972,3]
[356130987,1741936894650,-626.879335,0.00021972,7]
[356130988,1741936894681,-500.0,0.00021972,3]
[356130989,1741936894708,-1270.52,0.00021972,3]
[356130990,1741936894736,-500.0,0.00021972,3]
[356130991,1741936894764,-500.0,0.00021972,2]
[356130992,1741936894791,-500.0,0.00021972,3]
[356130993,1741936894819,-412.59031347,0.00021999,3]
[356130994,1741936894845,-500.0,0.00021999,3]
[356130995,1741936894873,-983.66,0.00021999,3]
[356130996,1741936894900,-500.0,0.00021999,3]
[356130997,1741936894928,-500.0,0.00021999,3]
[356130998,1741936894955,-735.35,0.00021999,3]
[356130999,1741936894982,-666.51,0.00021999,3]
[356131000,1741936895009,-500.0,0.00021999,3]
[356131001,1741936895038,-500.0,0.00021999,3]
[356131002,1741936895065,-787.16,0.00021999,3]
[356131003,1741936895092,-1295.98,0.00021999,3]
[356131004,1741936895119,-500.0,0.00021999,3]
[356131005,1741936895146,-500.0,0.00021999,3]
[356131006,1741936895173,-1289.57,0.00021999,3]
[356131007,1741936895200,-1037.78,0.00021999,3]
[356131008,1741936895227,-1084.8,0.00021999,3]
[356131009,1741936895253,-500.0,0.00021999,3]
[356131010,1741936895279,-500.0,0.00021999,3]
[356131011,1741936895499,-713.92,0.00021999,3]
[356131012,1741936895527,-500.0,0.00021999,3]
[356131013,1741936895554,-500.0,0.00021999,3]
[356131014,1741936895581,-770.02,0.00021999,3]
[356131015,1741936895608,-500.0,0.00021999,3]
[356131016,1741936895635,-151.0,0.00021999,7]
[356131017,1741936895661,-500.0,0.00021999,3]
[356131018,1741936895691,-500.0,0.00021999,3]
[356131019,1741936895719,-500.0,0.00021999,3]
[356131020,1741936895745,-1013.77,0.00021999,3]
[356131021,1741936895772,-151.0,0.00021999,7]
[356131022,1741936895799,-500.0,0.00021999,3]
[356131023,1741936895827,-500.0,0.00021999,3]
[356131024,1741936895854,-500.0,0.00021999,3]
[356131025,1741936895881,-500.0,0.00021999,3]
[356131026,1741936895908,-746.99,0.00021999,3]
[356131027,1741936895934,-500.0,0.00021999,3]
[356131028,1741936895961,-500.0,0.00021999,3]
[356131029,1741936895988,-662.9,0.00021999,3]
[356131030,1741936896016,-500.0,0.00021999,3]
[356131031,1741936896044,-349.79377817,0.00021999,3]
[356131032,1741936896071,-500.0,0.00021999,3]
[356131033,1741936896098,-772.07,0.00021999,3]
[356131034,1741936896125,-500.0,0.00021999,3]
[356131035,1741936896152,-500.0,0.00021999,3]
[356131036,1741936896178,-151.0,0.00021999,7]
[356131037,1741936896205,-557.6,0.00021999,3]
[356131038,1741936896231,-916.26,0.00021999,3]
[356131039,1741936896259,-651.4,0.00021999,3]
[356131040,1741936896286,-500.0,0.00021999,3]
[356131041,1741936896312,-500.0,0.00021999,3]
[356131042,1741936896339,-500.0,0.00021999,3]
[356131043,1741936896365,-500.0,0.00021999,3]
[356131044,1741936896391,-500.0,0.00021999,3]
[356131045,1741936896418,-651.11,0.00021999,3]
[356131046,1741936896458,-500.0,0.00021999,3]
[356131047,1741936896486,-500.0,0.00021999,3]
[356131048,1741936896514,-520.25985646,0.00021999,3]
[356131049,1741936896541,-1360.83,0.00021999,3]
[356131050,1741936896569,-500.0,0.00021999,3]
[356131051,1741936896597,-500.0,0.00021999,3]
[356131052,1741936896625,-500.0,0.00021999,3]
[356131053,1741936896653,-500.0,0.00021999,3]
[356131054,1741936896685,-500.0,0.00021999,3]
[356131055,1741936896715,-151.0,0.00021999,7]
[356131056,1741936896743,-655.53,0.00021999,3]
[356131057,1741936896773,-598.3,0.00021999,3]
[356131058,1741936896800,-1138.98,0.00021999,3]
[356131059,1741936896828,-500.0,0.00021999,3]
[356131060,1741936896856,-640.1,0.00021999,3]
[356131061,1741936896884,-500.0,0.00021999,3]
[356131062,1741936896913,-405.25647506,0.00021999,3]
[356131063,1741936896941,-1232.74,0.00021999,3]
[356131064,1741936896969,-500.0,0.00021999,3]
[356131065,1741936896998,-500.0,0.00021999,3]
[356131066,1741936897026,-500.0,0.00021999,3]
[356131067,1741936897055,-500.0,0.00021999,3]
[356131068,1741936897082,-500.0,0.00021999,3]
[356131069,1741936897109,-500.0,0.00021999,3]
[356131070,1741936897136,-500.0,0.00021999,3]
[356131071,1741936897164,-600.89,0.00021999,3]
[356131072,1741936897193,-500.0,0.00021999,3]
[356131073,1741936897221,-500.0,0.00021999,3]
[356131074,1741936897249,-500.0,0.00021999,3]
[356131075,1741936897276,-500.0,0.00021999,3]
[356131076,1741936897305,-500.0,0.00021999,3]
[356131077,1741936897335,-942.36,0.00021999,3]
[356131078,1741936897364,-500.0,0.00021999,3]
[356131079,1741936897392,-500.0,0.00021999,3]
[356131080,1741936897421,-1002.37,0.00021999,3]
[356131081,1741936897449,-500.0,0.00021999,3]
[356131082,1741936897478,-500.0,0.00021999,3]
[356131083,1741936897507,-636.71,0.00021999,3]
[356131084,1741936897535,-527.1,0.00021999,3]
[356131085,1741936897564,-500.0,0.00021999,3]
[356131086,1741936897592,-507.91,0.00021999,3]
[356131087,1741936897620,-1121.93,0.00021999,3]
[356131088,1741936897648,-738.18,0.00021999,3]
[356131089,1741936897681,-500.0,0.00021999,3]
[356131090,1741936897710,-1082.27,0.00021999,3]
[356131091,1741936897737,-501.07,0.00021999,3]
[356131092,1741936897766,-395.33115861,0.00021999,3]
[356131093,1741936897793,-500.0,0.00021999,3]
[356131094,1741936897821,-500.0,0.00021999,3]
[356131095,1741936897849,-615.09417631,0.00021999,3]
[356131096,1741936897877,-792.57,0.00021999,3]
[356131097,1741936897905,-646.68,0.00021999,3]
[356131098,1741936897932,-500.0,0.00021999,3]
[356131099,1741936897960,-501.06,0.00021999,3]
[356131100,1741936897988,-1237.94,0.00021999,3]
[356131101,1741936898017,-809.56,0.00021999,3]
[356131102,1741936898045,-1440.13,0.00021999,3]
[356131103,1741936898074,-500.0,0.00021999,3]
[356131104,1741936898102,-512.92,0.00021999,3]
[356131105,1741936898131,-574.09,0.00021999,3]
[356131106,1741936898159,-500.0,0.00021999,3]
[356131107,1741936898187,-534.47,0.00021999,3]
[356131108,1741936898216,-500.0,0.00021999,3]
[356131109,1741936898243,-500.0,0.00021999,3]
[356131110,1741936898271,-500.0,0.00021999,3]
[356131111,1741936898298,-500.0,0.00021999,3]
[356131112,1741936898326,-173.534334,0.00021999,7]
[356131113,1741936898354,-500.0,0.00021999,3]
[356131114,1741936898381,-500.0,0.00021999,3]
[356131115,1741936898408,-173.534334,0.00021999,7]
[356131116,1741936898436,-500.0,0.00021999,3]
[356131117,1741936898462,-500.0,0.00021999,3]
[356131118,1741936898490,-500.0,0.00021999,3]
[356131119,1741936898516,-500.0,0.00021999,3]
[356131120,1741936898543,-500.0,0.00021999,3]
[356131121,1741936898571,-500.0,0.00021999,3]
[356131122,1741936898597,-500.0,0.00021999,3]
[356131123,1741936898625,-500.0,0.00021999,3]
[356131124,1741936898652,-500.0,0.00021999,3]
[356131125,1741936898684,-182.77975464,0.00021999,3]
[356131126,1741936898711,-1070.2,0.00021999,3]
[356131127,1741936898739,-500.0,0.00021999,3]
[356131128,1741936898769,-2035.33,0.00021999,3]
[356131129,1741936898800,-1063.85,0.00021999,3]
[356131130,1741936898827,-1106.92,0.00021999,3]
[356131131,1741936898857,-500.0,0.00021999,3]
[356131132,1741936898885,-957.68,0.00021999,3]
[356131133,1741936898913,-500.0,0.00021999,3]
[356131134,1741936898941,-500.0,0.00021999,3]
[356131135,1741936898969,-500.0,0.00021999,3]
[356131136,1741936898997,-500.0,0.00021999,3]
[356131137,1741936899025,-500.0,0.00021999,3]
[356131138,1741936899261,-749.54,0.00021999,3]
[356131139,1741936899289,-500.0,0.00021999,3]
[356131140,1741936899316,-500.0,0.00021999,3]
[356131141,1741936899343,-500.0,0.00021999,3]
[356131142,1741936899370,-900.62,0.00021999,3]
[356131143,1741936899397,-364.55212623,0.00021999,3]
[356131144,1741936899424,-1183.4,0.00021999,3]
[356131145,1741936899452,-500.0,0.00021999,3]
[356131146,1741936899481,-354.897348,0.00021999,7]
[356131147,1741936899512,-2463.06,0.00021999,3]
[356131148,1741936899539,-354.897348,0.00021999,7]
[356131149,1741936899567,-500.0,0.00021999,3]
[356131150,1741936899596,-500.0,0.00021999,3]
[356131151,1741936899624,-907.67,0.00021999,3]
[356131152,1741936899651,-1751.54,0.00021999,3]
[356131153,1741936899682,-659.53,0.00021999,3]
[356131154,1741936899708,-500.0,0.00021999,3]
[356131155,1741936899736,-500.0,0.00021999,3]
[356131156,1741936899768,-500.0,0.00021999,3]
[356131157,1741936899796,-500.0,0.00021999,3]
[356131158,1741936899824,-638.1,0.00021999,3]
[356131159,1741936899852,-576.08,0.00021999,3]
[356131160,1741936899880,-500.0,0.00021999,3]
[356131161,1741936899908,-500.0,0.00021999,3]
[356131162,1741936899935,-500.0,0.00021999,3]
[356131163,1741936899964,-605.51,0.00021999,3]
[356131164,1741936899993,-500.0,0.00021999,3]
[356131165,1741936900020,-500.0,0.00021999,3]
[356131166,1741936900048,-500.0,0.00021999,3]
[356131167,1741936900075,-500.0,0.00021999,3]
[356131168,1741936900103,-500.0,0.00021999,3]
[356131169,1741936900132,-626.879335,0.00021999,7]
[356131170,1741936900160,-500.0,0.00021999,3]
[356131171,1741936900188,-626.879335,0.00021999,7]
[356131172,1741936900217,-500.0,0.00021999,3]
[356131173,1741936900245,-1270.52,0.00021999,3]
[356131174,1741936900273,-500.0,0.00021999,3]
[356131175,1741936900301,-500.0,0.00021999,2]
[356131176,1741936900329,-562.40038053,0.00021999,3]
[356131177,1741936900357,-150.0,0.00022,5]
[356131178,1741936900384,-522.19653987,0.00022026,3]
[356131179,1741936900412,-500.0,0.00022027,3]
[356131180,1741936900439,-500.0,0.00022027,3]
[356131181,1741936900466,-500.0,0.00022027,3]
[356131182,1741936900494,-500.0,0.00022027,3]
[356131183,1741936900522,-824.92,0.00022027,3]
[356131184,1741936900549,-563.47,0.00022027,3]
[356131185,1741936900578,-500.0,0.00022027,3]
[356131186,1741936900605,-500.0,0.00022027,3]
[356131187,1741936900633,-500.0,0.00022027,3]
[356131188,1741936900660,-500.0,0.00022027,3]
[356131189,1741936900693,-682.16,0.00022027,3]
[356131190,1741936900721,-500.0,0.00022027,3]
[356131191,1741936900750,-500.0,0.00022027,3]
[356131192,1741936900779,-500.0,0.00022027,3]
[356131193,1741936900808,-510.93,0.00022027,3]
[356131194,1741936900836,-500.0,0.00022027,3]
[356131195,1741936900863,-500.0,0.00022027,3]
[356131196,1741936900889,-615.94,0.00022027,3]
[356131197,1741936900917,-500.0,0.00022027,3]
[356131198,1741936900943,-500.0,0.00022027,3]
[356131199,1741936900970,-500.0,0.00022027,3]
[356131200,1741936900999,-540.37,0.00022027,3]
[356131201,1741936901026,-500.0,0.00022027,3]
[356131202,1741936901054,-500.0,0.00022027,3]
[356131203,1741936901082,-500.0,0.00022027,3]
[356131204,1741936901110,-509.93,0.00022027,3]
[356131205,1741936901139,-596.66,0.00022027,3]
[356131206,1741936901167,-500.0,0.00022027,3]
[356131207,1741936901195,-556.64716735,0.00022027,3]
[356131208,1741936901224,-741.98,0.00022027,3]
[356131209,1741936901254,-500.0,0.00022027,3]
[356131210,1741936901281,-500.0,0.00022027,3]
[356131211,1741936901311,-1220.36,0.00022027,3]
[356131212,1741936901337,-499.28691226,0.00022027,3]
[356131213,1741936901365,-500.0,0.00022027,3]
[356131214,1741936901392,-500.0,0.00022027,3]
[356131215,1741936901419,-566.55,0.00022027,3]
[356131216,1741936901446,-500.0,0.00022027,3]
[356131217,1741936901474,-500.0,0.00022027,3]
[356131218,1741936901503,-500.0,0.00022027,3]
[356131219,1741936901530,-500.0,0.00022027,3]
[356131220,1741936901558,-614.84,0.00022027,3]
[356131221,1741936901585,-500.0,0.00022027,3]
[356131222,1741936901613,-500.0,0.00022027,3]
[356131223,1741936901641,-558.63,0.00022027,3]
[356131224,1741936901668,-500.0,0.00022027,3]
[356131225,1741936901700,-583.61,0.00022027,3]
[356131226,1741936901727,-500.0,0.00022027,3]
[356131227,1741936901757,-500.0,0.00022027,3]
[356131228,1741936901786,-867.64,0.00022027,3]
[356131229,1741936901812,-500.0,0.00022027,3]
[356131230,1741936901839,-500.0,0.00022027,3]
[356131231,1741936901867,-500.0,0.00022027,3]
[356131232,1741936901894,-1548.19,0.00022027,3]
[356131233,1741936901921,-500.0,0.00022027,3]
[356131234,1741936901949,-1354.02,0.00022027,3]
[356131235,1741936901977,-500.0,0.00022027,3]
[356131236,1741936902004,-500.0,0.00022027,3]
[356131237,1741936902030,-500.0,0.00022027,3]
[356131238,1741936902058,-500.0,0.00022027,3]
[356131239,1741936902086,-500.0,0.00022027,3]
[356131240,1741936902113,-500.0,0.00022027,3]
[356131241,1741936902139,-500.0,0.00022027,3]
[356131242,1741936902166,-305.56379981,0.00022027,3]
[356131243,1741936902194,-500.0,0.00022027,3]
[356131244,1741936902221,-529.42,0.00022027,3]
[356131245,1741936902248,-500.0,0.00022027,3]
[356131246,1741936902276,-575.35,0.00022027,3]
[356131247,1741936902303,-500.0,0.00022027,3]
[356131248,1741936902331,-500.0,0.00022027,3]
[356131249,1741936902358,-500.0,0.00022027,3]
[356131250,1741936902386,-500.0,0.00022027,3]
[356131251,1741936902414,-500.0,0.00022027,3]
[356131252,1741936902441,-500.0,0.00022027,3]
[356131253,1741936902467,-597.12,0.00022027,3]
[356131254,1741936902494,-648.45,0.00022027,3]
[356131255,1741936902523,-500.0,0.00022027,3]
[356131256,1741936902550,-627.74,0.00022027,3]
[356131257,1741936902578,-500.0,0.00022027,3]
[356131258,1741936902606,-500.0,0.00022027,3]
[356131259,1741936902634,-691.7,0.00022027,3]
[356131260,1741936902662,-507.82866598,0.00022027,3]
[356131261,1741936902694,-500.0,0.00022027,3]
[356131262,1741936902723,-500.0,0.00022027,3]
[356131263,1741936902752,-500.0,0.00022027,3]
[356131264,1741936902970,-500.0,0.00022027,3]
[356131265,1741936902999,-500.0,0.00022027,3]
[356131266,1741936903027,-500.0,0.00022027,3]
[356131267,1741936903055,-500.0,0.00022027,3]
[356131268,1741936903083,-500.0,0.00022027,3]
[356131269,1741936903110,-500.0,0.00022027,3]
[356131270,1741936903137,-692.8,0.00022027,3]
[356131271,1741936903164,-820.39,0.00022027,3]
[356131272,1741936903191,-500.0,0.00022027,3]
[356131273,1741936903218,-500.0,0.00022027,3]
[356131274,1741936903250,-500.0,0.00022027,3]
[356131275,1741936903278,-500.0,0.00022027,3]
[356131276,1741936903316,-500.0,0.00022027,3]
[356131277,1741936903348,-831.57,0.00022027,3]
[356131278,1741936903380,-500.0,0.00022027,3]
[356131279,1741936903407,-500.0,0.00022027,3]
[356131280,1741936903433,-2030.3,0.00022027,3]
[356131281,1741936903459,-500.0,0.00022027,3]
[356131282,1741936903487,-3639.46,0.00022027,3]
[356131283,1741936903514,-1846.63,0.00022027,3]
[356131284,1741936903541,-480.852658,0.00022027,3]
[356131285,1741936903569,-1224.97,0.00022027,3]
[356131286,1741936903596,-1644.43,0.00022027,3]
[356131287,1741936903623,-875.7,0.00022027,3]
[356131288,1741936903651,-1493.72,0.00022027,3]
[356131289,1741936903680,-616.8,0.00022027,3]
[356131290,1741936903708,-500.0,0.00022027,3]
[356131291,1741936903736,-500.0,0.00022027,3]
[356131292,1741936903766,-153.467374,0.00022027,3]
[356131293,1741936903795,-500.0,0.00022027,3]
[356131294,1741936903823,-534.7,0.00022027,3]
[356131295,1741936903852,-507.67094751,0.00022027,3]
[356131296,1741936903880,-528.18,0.00022027,3]
[356131297,1741936903908,-1825.29,0.00022027,3]
[356131298,1741936903935,-500.0,0.00022027,3]
[356131299,1741936903962,-154.487704,0.00022027,3]
[356131300,1741936903990,-500.0,0.00022027,3]
[356131301,1741936904017,-153.253937,0.00022027,3]
[356131302,1741936904045,-500.0,0.00022027,3]
[356131303,1741936904072,-500.0,0.00022027,3]
[356131304,1741936904100,-500.0,0.00022027,3]
[356131305,1741936904128,-500.0,0.00022027,3]
[356131306,1741936904156,-500.0,0.00022027,3]
[356131307,1741936904184,-500.0,0.00022027,3]
[356131308,1741936904212,-500.0,0.00022027,3]
[356131309,1741936904240,-1450.38,0.00022027,3]
[356131310,1741936904268,-960.85,0.00022027,3]
[356131311,1741936904295,-500.0,0.00022027,3]
[356131312,1741936904322,-500.0,0.00022027,3]
[356131313,1741936904350,-2324.14,0.00022027,3]
[356131314,1741936904377,-500.0,0.00022027,3]
[356131315,1741936904406,-500.0,0.00022027,3]
[356131316,1741936904434,-910.74,0.00022027,3]
[356131317,1741936904461,-500.0,0.00022027,3]
[356131318,1741936904488,-601.73,0.00022027,3]
[356131319,1741936904516,-500.0,0.00022027,3]
[356131320,1741936904544,-530.29,0.00022027,3]
[356131321,1741936904573,-1089.91,0.00022027,3]
[356131322,1741936904600,-500.0,0.00022027,3]
[356131323,1741936904628,-500.0,0.00022027,3]
[356131324,1741936904656,-561.64,0.00022027,3]
[356131325,1741936904688,-500.0,0.00022027,3]
[356131326,1741936904715,-500.0,0.00022027,3]
[356131327,1741936904742,-500.0,0.00022027,3]
[356131328,1741936904770,-500.0,0.00022027,3]
[356131329,1741936904799,-500.0,0.00022027,3]
[356131330,1741936904826,-500.0,0.00022027,3]